Cogmind - Beta 14 @@@ ROGUE MODE // 2025.05.03 @ 16:12:50 Player: Scared Dad Result: Destroyed by 35-5WO(R) with Subdweller Beam Cannon Performance ------------- Evolutions (0) 0 Regions Visited (3) 600 Robots Destroyed (18) 90 Value Destroyed (451) 451 Prototype IDs (1) 20 Alien Tech Used (0) 0 Bonus (0) 0 TOTAL SCORE: 1161 Bonus ------- None Cogmind --------- Core Integrity 0/250 Matter 296/300 Energy 280/280 System Corruption 3% Temperature Cool (9) Movement Treading (160) Location -10/Subcaves Parts ------- > --- POWER (1) -------- Heavy Ion Engine > --- PROPULSION (2) --- Improved Treads Improved Treads (fused) > --- UTILITY (2) ------ Small Storage Unit Signal Interpreter > --- WEAPON (2) ------- Small Laser Light Assault Rifle > --- INVENTORY (8) ---- Ion Engine Light Ion Engine Improved Treads Improved Treads Heat Sink Experimental Sensor Array Medium Laser Peak State ------------ > --- POWER ------------ Heavy Ion Engine > --- PROPULSION ------- Improved Treads Improved Treads > --- UTILITY ---------- Small Storage Unit Signal Interpreter > --- WEAPON ----------- Medium Laser Assault Rifle > --- INVENTORY -------- Ion Engine Light Ion Engine Improved Treads Improved Treads Heat Sink Experimental Sensor Array Light Assault Rifle Light Assault Rifle [Rating: 12] Favorites ----------- Power Heavy Ion Engine Engine Heavy Ion Engine Propulsion Improved Treads Treads Improved Treads Wheel Wheel Utility Small Storage Unit Storage Small Storage Unit Processor Signal Interpreter Weapon Light Assault Rifle Energy Gun Medium Laser Ballistic Gun Light Assault Rifle Build | -11 -10 -10 -10 ------- Run | Yrd Mat Min Sub Slots Evolved . | . . . . Power . | . . . . Propulsion . | . . . . Utility . | . . . . Weapon . | . . . . Parts Attached 16 | 6 4 6 . Power 2 | 1 1 . . Engine 2 | 1 1 . . Core . | . . . . Reactor . | . . . . Propulsion 5 | 2 1 2 . Treads 2 | . . 2 . Leg . | . . . . Wheel 3 | 2 1 . . Hover . | . . . . Flight . | . . . . Utility 2 | 1 1 . . Device . | . . . . Storage 1 | 1 . . . Processor 1 | . 1 . . Hackware . | . . . . Protection . | . . . . Artifact . | . . . . Weapon 7 | 2 1 4 . Energy Gun 2 | . . 2 . Energy Cannon . | . . . . Ballistic Gun 5 | 2 1 2 . Ballistic Cannon . | . . . . Launcher . | . . . . Special Weapon . | . . . . Impact Weapon . | . . . . Slashing Weapon . | . . . . Piercing Weapon . | . . . . Special Melee Weapon . | . . . . Unidentified Prototypes 1 | . 1 . . Parts Lost 1 | . 1 . . Power . | . . . . Propulsion 1 | . 1 . . Utility . | . . . . Weapon . | . . . . Highest Loss Streak 1 | . 1 . . To Critical Strikes . | . . . . Average Slot Usage (%) 97 | . 92 100 100 Engine 14 | . 14 14 14 Treads 18 | . . 27 28 Wheel 8 | . 24 . . Storage 14 | . 14 14 14 Processor 12 | . 9 14 14 Energy Gun 9 | . . 14 14 Ballistic Gun 18 | . 28 14 14 Peak Build Rating 12 | 6 10 12 12 Average Rating 9 | 4 6 11 12 On Entrance 7 | . 6 10 12 Naked Turns . | . . . . Heaviest Build 17 | 13 15 17 15 Greatest Support 46 | 20 20 46 46 Greatest Overweight (x) 1 | . 1 . . Average Overweight (x) . | . . . . Largest Inventory Capacity 8 | 8 8 8 8 Average Capacity 7 | 7 8 8 8 Most Carried 8 | 7 8 8 7 Average Carried 6 | 4 7 6 7 Final Capacity 8 | 8 8 8 8 Final Carried 8 | 6 8 7 7 Class Distribution -------------------- 100% | Mutant Dominant Class ---------------- Mutant | -10/Materials Mutant | -10/Mines Mutant | -10/Subcaves Resources | -11 -10 -10 -10 ----------- Run | Yrd Mat Min Sub Matter Collected 583 | 230 150 179 24 Remotely . | . . . . Salvage Created 540 | . 305 235 . Parts 37 | . 20 17 . Haulers Intercepted . | . . . . Recyclers Shooed . | . . . . Parts Field Recycled . | . . . . Retrieved Matter . | . . . . Parts Self-Destructed 1 | . . . 1 Prevented . | . . . . Kills | -11 -10 -10 -10 ------- Run | Yrd Mat Min Sub Combat Hostiles Destroyed 16 | . 9 7 . Guns 15 | . 8 7 . AOE 1 | . 1 . . Classes Destroyed 3 | . 3 . . Worker 2 | . 2 . . Swarmer 6 | . 3 3 . Grunt 10 | . 6 4 . Best Kill Streak 3 | . 3 3 . Combat Bots Only 3 | . 3 3 . Max Kills in Single Turn 3 | . 3 1 . Gunslinging . | . . . . Exploded 1 | . 1 . . Melee . | . . . . Uniques/NPCs Destroyed . | . . . . Combat | -11 -10 -10 -10 -------- Run | Yrd Mat Min Sub Hostile Shots Fired 92 | . 43 37 12 Missed 31 | . 19 10 2 Damage Taken 847 | . 267 335 245 Core 252 | . 75 96 81 Absorbed by Shields . | . . . . Core Remaining (%) 100 | 100 . . . Volleys Fired 62 | . 35 23 4 Largest 2 | . 2 2 2 Hottest 70 | . 40 70 60 Shots Fired 124 | . 68 48 8 Gun 124 | . 68 48 8 Cannon . | . . . . Launcher . | . . . . Special . | . . . . Kinetic 98 | . 68 26 4 Thermal 26 | . . 22 4 Explosive . | . . . . Electromagnetic . | . . . . Robot Hit Streak 17 | . 7 10 17 Robot Miss Streak 2 | . 2 2 . Penetration Max . | . . . . Secondary Targets . | . . . . Shots Hit Robots 86 | . 43 35 8 Core Hits 36 | . 20 14 2 Critical Kills . | . . . . Critical Parts Destroyed . | . . . . Critical Strikes . | . . . . Melee Attacks . | . . . . Impact . | . . . . Slashing . | . . . . Piercing . | . . . . Sneak Attacks . | . . . . Combat Hostiles . | . . . . Follow-up Attacks . | . . . . Damage Inflicted 1146 | . 687 379 80 Guns 854 | . 395 379 80 Cannons . | . . . . Explosions 292 | . 292 . . Melee . | . . . . Ramming . | . . . . Kinetic 601 | . 395 169 37 Thermal 253 | . . 210 43 Explosive 292 | . 292 . . Electromagnetic . | . . . . Impact . | . . . . Slashing . | . . . . Piercing . | . . . . Highest Corruption 3 | . 3 3 3 Average Corruption 2 | . 2 3 3 Corruption Purged . | . . . . Corruption Blocked . | . . . . Effects 31 | . 8 19 4 Message Errors 6 | . 1 4 1 Matter Fused 10 | . 2 8 . Heat Flow Errors 4 | . 2 . 2 Energy Discharges 4 | . 1 2 1 Parts Rejected 1 | . . 1 . Parts Fused 1 | . . 1 . Data Loss (minor) 1 | . . 1 . Misfires 3 | . 1 2 . Alerts 1 | . 1 . . Overload Shots . | . . . . Overflow Damage . | . . . . Projectiles . | . . . . Explosions . | . . . . Melee . | . . . . Knockbacks . | . . . . Impact . | . . . . Kinetic . | . . . . Secondary . | . . . . Self-Inflicted Damage . | . . . . Shots . | . . . . Rammed . | . . . . Targets Rammed . | . . . . Kicked . | . . . . Crushed . | . . . . Highest Temperature 308 | . 204 308 240 Average Temperature 99 | . 77 109 115 Received Heat Transfer 366 | . 135 153 78 Effects 2 | . 2 . . Interference 2 | . 2 . . Siege Activations . | . . . . Robots Corrupted . | . . . . Combat Hostiles . | . . . . Parts Fried . | . . . . Impact Corruptions . | . . . . Robots Melted . | . . . . Combat Hostiles . | . . . . Parts Melted 1 | . . 1 . Heat Transferred 729 | . . 629 100 Parts Sabotaged . | . . . . Parts Stolen . | . . . . Parts Stripped . | . . . . Power Chain Reactions . | . . . . Alert | -11 -10 -10 -10 ------- Run | Yrd Mat Min Sub Peak Influence 364 | . 364 198 . Initial 78 | . . 78 . Average 110 | . 199 69 . Maximum Alert Level 1 | . 1 . . Low Security (%) 87 | 100 62 100 . Level 1 12 | . 37 . . Level 2 . | . . . . Level 3 . | . . . . Level 4 . | . . . . Level 5 . | . . . . High Security . | . . . . Max Security . | . . . . Squads Dispatched 2 | . 2 . . Investigation . | . . . . Extermination . | . . . . Reinforcement 2 | . 2 . . Assault . | . . . . Garrison . | . . . . Intercept . | . . . . Searches Triggered . | . . . . Construction Impeded . | . . . . Haulers Reinforced . | . . . . Active Scanning Responses . | . . . . Cargo Convoy Interrupts . | . . . . Stealth | -11 -10 -10 -10 --------- Run | Yrd Mat Min Sub Distress Signals 2 | . 2 . . Communications Jammed . | . . . . Distress Signals . | . . . . Times Spotted 30 | . 21 7 2 Peak Tracking Total 5 | . 5 3 2 Tactical Retreats 1 | . 1 . . Traps | -11 -10 -10 -10 ------- Run | Yrd Mat Min Sub Traps Triggered 2 | . 2 . . Indirectly . | . . . . Trap Hack Attempts . | . . . . Triggered . | . . . . Disarmed . | . . . . Reprogrammed . | . . . . Reused . | . . . . Traps Extracted . | . . . . Installed . | . . . . Triggered . | . . . . Machines | -11 -10 -10 -10 ---------- Run | Yrd Mat Min Sub Machines Disabled 1 | . 1 . . Max in Single Turn 1 | . 1 . . Machines Repaired . | . . . . Machines Dismantled . | . . . . Machines Sabotaged . | . . . . Overloaded Fab Kills . | . . . . Hacking | -11 -10 -10 -10 --------- Run | Yrd Mat Min Sub Machines Accessed 4 | . 4 . . Terminals 4 | . 4 . . Fabricators . | . . . . Repair Stations . | . . . . Recycling Units . | . . . . Scanalyzers . | . . . . Garrison Access . | . . . . Total Hacks 14 | . 14 . . Successful 5 | . 5 . . Failed 9 | . 9 . . Catastrophic . | . . . . Database Lockouts . | . . . . Manual . | . . . . Terminals 14 | . 14 . . Fabricators . | . . . . Repair Stations . | . . . . Recycling Units . | . . . . Scanalyzers . | . . . . Garrison Access . | . . . . Terminal Hacks 5 | . 5 . . Branch Access Points 1 | . 1 . . Emergency Access Points 1 | . 1 . . Locate Traps 1 | . 1 . . Zone Layout 2 | . 2 . . Fabricator Hacks . | . . . . Repair Station Hacks . | . . . . Recycling Unit Hacks . | . . . . Scanalyzer . | . . . . Garrison Access Hacks . | . . . . Unauthorized Hacks . | . . . . Terminals . | . . . . Fabricators . | . . . . Repair Stations . | . . . . Recycling Units . | . . . . Scanalyzers . | . . . . Garrison Access . | . . . . Data Cores Recovered . | . . . . Used . | . . . . Hacking Detections 4 | . 4 . . Full Trace Events . | . . . . Feedback Events . | . . . . Feedback Blocked . | . . . . Robot Schematics Acquired . | . . . . Robots Built . | . . . . Authchips . | . . . . Time . | . . . . Total Robot Build Rating . | . . . . Part Schematics Acquired . | . . . . Parts Built . | . . . . Authchips . | . . . . Time . | . . . . Total Part Build Rating . | . . . . Parts Repaired . | . . . . Time . | . . . . Parts Recycled . | . . . . Recycled Matter . | . . . . Retrieved Matter . | . . . . Retrieved Components . | . . . . Parts Scanalyzed . | . . . . Part Schematics Acquired . | . . . . Parts Damaged . | . . . . Bothacking | -11 -10 -10 -10 ------------ Run | Yrd Mat Min Sub Used RIF Installer . | . . . . Robots Hacked . | . . . . Non-combat . | . . . . Combat . | . . . . Robot Hacks Applied . | . . . . Relay Couplers Released . | . . . . Fabnet Peak Effective % . | . . . . Robots Rewired . | . . . . Allies Hacked . | . . . . Hacks Repelled . | . . . . Allies | -11 -10 -10 -10 -------- Run | Yrd Mat Min Sub Total Allies . | . . . . Largest Group . | . . . . Highest-Rated Group . | . . . . Highest-Rated Ally . | . . . . Total Orders . | . . . . Ally Attacks . | . . . . Total Damage . | . . . . Kills . | . . . . Allies Corrupted . | . . . . Allies Melted . | . . . . Intel | -11 -10 -10 -10 ------- Run | Yrd Mat Min Sub Robot Analysis Total . | . . . . Derelict Logs Recovered 3 | . . 2 1 Drone Launches . | . . . . Drone Recoveries . | . . . . Exploration | -11 -10 -10 -10 ------------- Run | Yrd Mat Min Sub Turns Passed 1666 | 54 496 910 206 Spaces Moved 1111 | 49 429 516 117 Core 9 | 9 . . . Treads 632 | . . 515 117 Legs . | . . . . Wheels 470 | 40 429 1 . Hover . | . . . . Flight . | . . . . Fastest Speed 50 | 50 80 80 160 Average Speed 126 | 74 82 159 160 Slowest Speed 160 | 80 95 160 160 Overloaded Moves . | . . . . Propulsion Burnouts . | . . . . Robots Hopped . | . . . . Cave-ins Triggered . | . . . . Exploration Rate (%) 48 | 3 77 99 14 Regions Visited 3 Branch Regions 2 Pre-discovered Areas 1 | . . . 1 Known Exits Taken 2 | . 1 1 . Unknown Exits Taken 1 | 1 . . . Scrap Searched 1 | . . 1 . Spaces Dug . | . . . . Terrain Destroyed 18 | . 18 . . Melee . | . . . . Projectile . | . . . . AOE 18 | . 18 . . Terrain Rammed . | . . . . Walls Destroyed . | . . . . Machines Disabled . | . . . . Actions | -11 -10 -10 -10 --------- Run | Yrd Mat Min Sub Total 1270 | 66 516 558 130 Wait 50 | . 35 6 9 Move 1108 | 48 428 515 117 Hop . | . . . . Pick Up 25 | 12 9 4 . Fast Attach . | . . . . Attach 9 | 6 2 1 . Detach . | . . . . Swap 7 | . 2 5 . Drop 9 | . 5 4 . Fire 62 | . 35 23 4 Melee . | . . . . Ram . | . . . . Kick . | . . . . Crush . | . . . . Escape Stasis . | . . . . Rewire . | . . . . Trap . | . . . . Miscellaneous . | . . . . Route ------- -11/Scrapyard -10/Materials (discovered 5 exits: *Mat x3 / *Min x2) -10/Mines (discovered 3 exits: *Mat x2 / *Sub) -10/Subcaves History --------- Turn | Location | Event 7 | -11/Scrapyard | Discovered new exit (range 16) 55 | -11/Scrapyard | Entered Materials 75 | -10/Materials | Discovered new exit (range 11) 139 | -10/Materials | Discovered new exit (range 16) 226 | -10/Materials | Discovered new exit (range 14) 248 | -10/Materials | Identified exit to Materials 289 | -10/Materials | Identified exit to Mines 316 | -10/Materials | Build established: Mutant 496 | -10/Materials | Discovered exit to Materials (range 13) 551 | -10/Materials | Entered Mines 564 | -10/Mines | Core integrity fell below 50% 713 | -10/Mines | Discovered exit to Materials (range 9) 844 | -10/Mines | Learned Materials trap positions 860 | -10/Mines | Discovered exit to Materials (range 15) 891 | -10/Mines | Learned Materials emergency access door positions 974 | -10/Mines | Found a damaged Exp. Sensor Array with a note attached 977 | -10/Mines | Found Prototype Device 1450 | -10/Mines | Discovered new exit (range 6) 1456 | -10/Mines | Identified exit to Subcaves 1461 | -10/Mines | Entered Subcaves 1553 | -10/Subcaves | Learned location of Zion (-7) 1664 | -10/Subcaves | Core integrity fell below 20% 1667 | -10/Subcaves | Destroyed by 35-5WO(R) with Subdweller Beam Cannon Last Messages --------------- 01445_ U-05 Engineer lays Concrete. 01447_ T-07 Excavator is excavating. 01447_ U-05 Engineer lays Concrete. 01450_ EXIT=FOUND 01450_ U-05 Engineer builds a Wall. 01451_ T-07 Excavator is excavating. 01453_ U-05 Engineer lays Concrete. 01456_ EXIT=IDENTIFIED: SUBCAVES LOCATION=SUBCAVES AMBIENT_HEAT=-10 GOAL=ESCAPE 01463_ Acquired 8 matter. 01477_ Acquired 10 matter. 01493_ Acquired 6 matter. 01543_ &H:RGBNVZ ICFWUEJ6VNAJL7 RNQP|WM 01553_ Acquired derelict log, extracted data. World map updated: -7/Zion. 01584_ System corrupted: Heat flow error (+235). 01605_ System corrupted: Energy discharge (-98). 01633_ System corrupted: Heat flow error (+277). Map ----- +----------------------------------------------------+ | ?????????????????????????????????????????????????? | | ?????????????????????????????????????????????????? | | ?????????????????????????????????????????????????? | | ?????????????????????????????????????????????????? | | ?????????????????????????????????????????????????? | | ?????????????????????????????????????????????????? | | ?????????????????????????????????????????????????? | | ?????????????????????????????????????????????????? | | ?????????????????????????????????????????????????? | | ?????????????????????????????????????????????????? | | ???????????????????????? ???????????????????????? | | ???????????????????????? ???????????????????????? | | ??????????????????? ?? ?????????????????? ??? | | ?????????????????? ?# ??????????????##? ??? | | ????????????????? ## ?????????????# ## ???? | | ????????????????? ????????????? ????? | | ????????????????? ????????????? ????? | | ?????###??##????# #???????????? #???? | | ????## ### #???# ###?????????? #???? | | ????# ??# % #######??## #???? | | ??# ?? #### #???? | | ## ?? #???? | | # #?????# % #???? % | | ?# ###???## ## ## # ####????# | | ## ##???????## ### % ###?????# | | ########?#@ #?## % #????## | | ###RR #### # ##??## | | % # # #### | | % # # %### % | | ### % #?## | | #?# % #??# | | ## #### % ## | | #### ####??##### ## | | # ??# ##????????## ### | | ## ### ??# ##?????????### ##?###### | | ??# ??# ??##### % #?????????????#???????# | | ?# ??? ???????# ##????????????????????## | | ?# ???## ???????## ###?????????????????????# | | ??????? ????????## #???????????????????????# | | ??????? ?????????## ##???????????????????????## | | ??????? ???????????# #?????????????????????????## | | ??????????????????## #??????????????????????????# | | ?????????????????## ##?????????????????????????? | | ?????????????????# #?????????????????????????# | | ?????????????????# #?????????????????????????# | | ?????????????????### #?????????????????????????? | | ???????????????????#####?????????????????????????? | | ?????????????????????????????????????????????????? | | ?????????????????????????????????????????????????? | | ?????????????????????????????????????????????????? | +----------------------------------------------------+ Best States ------------- Heat Dissipation 25 Energy Generation 14 Energy Capacity 280 Matter Stores 300 Matter Capacity 300 Sight Range 16 Terrain Scan Density 10 Evasion (%) 50 Recoil Reduction 2 Item Schematics ----------------- None Robot Schematics ------------------ None Fabricated ------------ Nothing Alien Tech Used ----------------- None Achievements -------------- None Challenges ------------ None Game ------ Seed FortressFlightStick Manual? 0 Play Time 00:11:19 Cumulative 96.9 hours Start 2025.05.03 @ 16:02:33 End 2025.05.03 @ 16:12:50 Sessions 1 Manual Loads 0 Difficulty Rogue Special Mode None Game No. 119 Rogue 119 Adventurer 0 Explorer 0 Win Type - Total 0 Types 0/0/0/0/0/0/0/0/0 Lore% 31 Gallery% 49 Achievement% 42 Wizard Run 0 Options --------- Layout 2 ASCII 0 Keyboard 0 Movement Numpad Keybinds 0 Fullscreen 1 Font 24/Smallcaps Map View 50x44 Zoom Use 0% Tactical HUD 1 Map Filters NONE Filters NONE Steam 1 RUN: 838ada35-0ca6-4a94-a8eb-59cea43ab498